bitfinex-derivatives/quotes_BTCF0:USTF0_20251210
["timestamp","ask_amount","ask_price","bid_price","bid_amount"]
[1765326506518,0.0108115,92487.0,92486.0,0.0108113]
[1765326506830,0.0108115,92487.0,92486.0,0.0686913]
[1765326507025,0.0386015,92487.0,92486.0,0.0686913]
[1765326507927,0.0683715,92487.0,92486.0,0.05788]
[1765326508431,0.0693715,92487.0,92486.0,0.05788]
[1765326508729,0.0693715,92487.0,92486.0,0.0282]
[1765326508928,0.0683725,92478.0,92477.0,0.05788]
[1765326510316,0.0683725,92478.0,92477.0,0.0855326]
[1765326510522,0.0683725,92478.0,92477.0,0.0875326]
[1765326511230,0.0683725,92478.0,92477.0,0.07672]
[1765326512529,0.0396823,92490.0,92489.0,0.0686912]
[1765326512724,0.0396823,92490.0,92489.0,0.05788]
[1765326512924,0.0396823,92490.0,92489.0,0.0686912]
[1765326513632,0.0010812,92490.0,92489.0,0.0686912]
[1765326513933,0.0020812,92490.0,92489.0,0.0686912]
[1765326514331,0.0406823,92490.0,92489.0,0.0686912]
[1765326514526,0.0704523,92490.0,92489.0,0.0686912]
[1765326515122,0.0030812,92490.0,92489.0,0.4686912]
[1765326516327,0.0020812,92490.0,92489.0,0.4686912]
[1765326516527,0.0030812,92490.0,92489.0,0.4686912]
[1765326516734,0.0020812,92490.0,92489.0,0.4696912]
[1765326517127,0.0010812,92490.0,92489.0,0.4696912]
[1765326517529,0.0010812,92490.0,92489.0,0.1296912]
[1765326517730,0.0010812,92490.0,92489.0,0.0696912]
[1765326520236,0.0010812,92490.0,92489.0,0.4296912]
[1765326524137,0.00016218,92494.0,92493.0,0.0686907]
[1765326524328,0.0108097,92502.0,92501.0,0.0686892]
[1765326525047,0.0108094,92505.0,92504.0,0.0108091]
[1765326525249,0.0108094,92505.0,92504.0,0.0686891]
[1765326525434,0.0683694,92505.0,92504.0,0.05788]
[1765326526338,0.0703694,92505.0,92504.0,0.05888]
[1765326527545,0.0733694,92505.0,92504.0,0.05888]
[1765326535751,0.0733694,92505.0,92504.0,0.0696894]
[1765326538854,0.06256,92505.0,92504.0,0.0696894]
[1765326539739,0.00016218,92514.0,92504.0,0.2496894]
[1765326539945,0.0694964,92530.0,92529.0,0.05591]
[1765326540147,0.09399975,92530.0,92529.0,0.05591]
[1765326541058,0.09699975,92530.0,92529.0,0.05591]
[1765326541854,0.09899975,92530.0,92529.0,0.05591]
[1765326542248,0.05923335,92530.0,92529.0,0.05591]
[1765326542453,0.05423335,92530.0,92529.0,0.05591]
[1765326542657,0.05723335,92530.0,92529.0,0.05591]
[1765326543350,0.02750335,92530.0,92529.0,0.05591]
[1765326543550,0.003,92530.0,92529.0,0.05591]
[1765326546455,0.003,92530.0,92529.0,0.47591]
[1765326546760,0.00016218,92539.0,92538.0,0.0839355]
[1765326547153,0.00016218,92539.0,92538.0,0.4439355]
[1765326547656,0.05885218,92539.0,92538.0,0.16313]
[1765326547862,0.00016218,92539.0,92538.0,0.16313]
[1765326548160,0.00216218,92539.0,92538.0,0.47313]
[1765326549257,0.00416218,92539.0,92538.0,0.47313]
[1765326549464,0.00416218,92539.0,92538.0,0.11313]
[1765326550163,0.00416218,92539.0,92538.0,0.45313]
[1765326551461,0.00108062,92540.0,92539.0,0.0695753]
[1765326551462,2.8e-06,92540.0,92539.0,0.0695753]
[1765326551668,0.0108038,92553.0,92552.0,0.0695738]
[1765326553062,0.0108038,92553.0,92552.0,0.05877]
[1765326553468,0.0380938,92553.0,92552.0,0.05977]
[1765326553869,0.0380938,92553.0,92552.0,0.05877]
[1765326554068,0.0380938,92553.0,92552.0,0.05977]
[1765326555467,0.0380938,92553.0,92552.0,0.06077]
[1765326555665,0.0670638,92553.0,92552.0,0.002]
[1765326556067,0.0670638,92553.0,92552.0,0.06077]
[1765326557269,0.0380938,92553.0,92552.0,0.06077]
[1765326557468,0.0108038,92553.0,92552.0,0.06077]
[1765326557768,0.05642208,92562.0,92561.0,0.05877]
[1765326557974,0.06722478,92562.0,92561.0,0.05877]
[1765326558273,0.06722478,92562.0,92561.0,0.07532]
[1765326559063,0.06722478,92562.0,92561.0,0.07632]
[1765326559263,0.06822478,92562.0,92561.0,0.07632]
[1765326563775,0.06822478,92562.0,92561.0,0.05977]
[1765326564672,0.08550478,92562.0,92561.0,0.001]
[1765326568480,0.08550478,92562.0,92561.0,0.05654]
[1765326573169,0.11004614,92562.0,92561.0,0.05654]
[1765326574984,0.11004614,92562.0,92561.0,0.001]
[1765326575185,0.11004614,92562.0,92561.0,0.05654]
[1765326576883,0.09276614,92562.0,92561.0,0.05654]
[1765326580375,0.08196344,92562.0,92561.0,0.05654]
[1765326583089,7e-08,92583.0,92581.0,0.05554]
[1765326583294,0.00108004,92590.0,92589.0,0.0663395]
[1765326583481,0.13449571,92618.0,92609.0,0.0663372]
[1765326583482,0.07345,92610.0,92609.0,0.0663372]
[1765326585290,0.07445,92610.0,92609.0,0.05554]
[1765326585488,0.07645,92610.0,92609.0,0.05554]
[1765326590790,0.05858,92610.0,92609.0,0.05554]
[1765326591899,0.07645,92610.0,92609.0,0.05554]
[1765326592995,0.07292,92582.0,92581.0,0.0655104]
[1765326593801,0.05757,92582.0,92581.0,0.0655104]
[1765326593995,0.05757,92582.0,92581.0,0.0675104]
[1765326594197,0.02815,92582.0,92581.0,0.1775104]
[1765326595002,0.02815,92582.0,92581.0,0.1815104]
[1765326595393,0.0696997,92588.0,92587.0,0.0652497]
[1765326595692,0.0589,92588.0,92587.0,0.0652497]
[1765326596986,0.0589,92588.0,92587.0,0.05445]
[1765326597204,0.0589,92588.0,92587.0,0.0652497]
[1765326597498,0.0589,92588.0,92587.0,0.0682497]
[1765326597901,0.0107995,92590.0,92589.0,0.05445]
[1765326598099,0.0696995,92590.0,92589.0,0.05445]
[1765326599097,0.0696995,92590.0,92589.0,0.05545]
[1765326601000,0.0696995,92590.0,92589.0,0.02705]
[1765326601300,0.0696995,92590.0,92589.0,0.02805]
[1765326601504,0.0706995,92590.0,92589.0,0.001]
[1765326601803,0.0706995,92590.0,92582.0,0.0652503]
[1765326601804,0.0589,92583.0,92582.0,0.0652503]
[1765326602001,0.02948,92583.0,92582.0,0.0652503]
[1765326602205,0.0402799,92586.0,92585.0,0.06525]
[1765326602407,0.0696999,92586.0,92585.0,0.06525]
[1765326602804,0.0589,92586.0,92585.0,0.06525]
[1765326604006,0.0589,92586.0,92585.0,0.06625]
[1765326604407,0.0589,92586.0,92585.0,0.06825]
[1765326606003,0.07597,92586.0,92585.0,0.06825]
[1765326606910,0.07597,92586.0,92585.0,0.05745]
[1765326608113,0.07597,92586.0,92585.0,0.05545]
[1765326608414,0.07597,92586.0,92585.0,0.05645]
[1765326609112,0.07597,92586.0,92585.0,0.05545]
[1765326610811,0.07597,92586.0,92585.0,0.05645]
[1765326611014,0.07597,92586.0,92585.0,0.05745]
[1765326612313,0.09888255,92586.0,92585.0,0.05745]
[1765326613005,0.08181255,92586.0,92585.0,0.05545]
[1765326613208,0.02291255,92586.0,92585.0,0.44545]
[1765326613415,0.00016199,92591.0,92585.0,0.44545]
[1765326613606,0.00016199,92591.0,92590.0,0.0649394]
[1765326613807,0.00016199,92591.0,92590.0,0.4549394]
[1765326614411,0.02838199,92591.0,92590.0,0.2549394]
[1765326614806,0.05824199,92591.0,92590.0,0.4849394]
[1765326615006,0.00016199,92591.0,92590.0,0.4849394]
[1765326615612,0.07452384,92610.0,92604.0,0.0649378]
[1765326615613,0.0390177,92605.0,92604.0,0.0649378]
[1765326615814,0.09180605,92605.0,92604.0,0.0649378]
[1765326616815,0.09280605,92605.0,92604.0,0.0649378]
[1765326617015,0.09280605,92605.0,92604.0,0.05414]
[1765326618017,0.08200835,92605.0,92604.0,0.05414]
[1765326622019,0.02392835,92605.0,92604.0,0.07101]
[1765326622223,0.001,92605.0,92604.0,0.07101]
[1765326622426,0.02394905,92605.0,92604.0,0.07101]
[1765326622815,0.08202905,92605.0,92604.0,0.05414]
[1765326623325,0.05908,92605.0,92604.0,0.05414]
[1765326624032,0.08203365,92605.0,92604.0,0.05414]
[1765326624216,0.05908,92605.0,92604.0,0.05414]
[1765326625415,0.001,92605.0,92604.0,0.05414]
[1765326626321,0.05815,92605.0,92604.0,0.05414]
[1765326631518,0.001,92605.0,92604.0,0.06643]
[1765326632317,0.001,92605.0,92604.0,0.46643]
[1765326632530,0.00016199,92614.0,92613.0,0.0676067]
[1765326632829,0.00016199,92614.0,92613.0,0.4676067]
[1765326634427,0.00016199,92614.0,92613.0,0.4686067]
[1765326634634,0.02849199,92614.0,92613.0,0.23781]
[1765326634833,0.02849199,92614.0,92613.0,0.23981]
[1765326635135,0.05731199,92614.0,92613.0,0.23981]
[1765326635635,0.05731199,92614.0,92613.0,0.32451549]
[1765326635821,0.05731199,92614.0,92613.0,0.05981]
[1765326637526,0.05731199,92614.0,92613.0,0.0315]
[1765326637721,0.05731199,92614.0,92613.0,0.0295]
[1765326638133,0.05731199,92614.0,92613.0,0.05881]
[1765326638525,0.05731199,92614.0,92613.0,0.0305]
[1765326638730,0.05731199,92614.0,92613.0,0.0295]
[1765326638931,0.05831199,92614.0,92613.0,0.0285]
[1765326639131,0.05931199,92614.0,92613.0,0.05681]
[1765326640635,0.05931199,92614.0,92613.0,0.0285]
[1765326640827,0.05931199,92614.0,92598.0,0.05681]
[1765326640828,0.0679483,92599.0,92598.0,0.05681]
[1765326641032,0.0679483,92599.0,92598.0,0.08681]
[1765326641928,0.0679483,92599.0,92598.0,0.08781]
[1765326642131,0.0679483,92599.0,92598.0,0.08981]
[1765326642339,0.0679483,92599.0,92598.0,0.05981]
[1765326643233,0.0679483,92599.0,92598.0,0.08981]
[1765326643933,0.0679483,92599.0,92598.0,0.002]
[1765326644135,0.09077095,92599.0,92598.0,0.002]
[1765326645135,0.09077095,92599.0,92598.0,0.001]
[1765326645330,0.0679509,92577.0,92576.0,0.11476643]
[1765326645535,0.0679509,92577.0,92576.0,0.14681]
[1765326647740,0.0679509,92577.0,92576.0,0.14781]
[1765326647931,0.0679509,92577.0,92576.0,0.14881]
[1765326650834,0.05715,92577.0,92576.0,0.14881]
[1765326651141,0.02833,92577.0,92576.0,0.14881]
[1765326651345,0.05715,92577.0,92576.0,0.14881]
[1765326651640,0.0108009,92578.0,92577.0,0.0676109]
[1765326651839,0.0108005,92581.0,92580.0,0.0799001]
[1765326652939,0.0108005,92581.0,92580.0,0.5099001]
[1765326653140,0.0676402,92584.0,92583.0,0.0108]
[1765326653340,0.00016199,92586.0,92585.0,0.05834]
[1765326653532,0.00016199,92586.0,92585.0,0.42834]
[1765326654941,0.00016199,92586.0,92585.0,0.42934]
[1765326660545,0.05700199,92586.0,92585.0,0.18934]
[1765326660845,0.07363199,92586.0,92585.0,0.05934]
[1765326661145,0.00016199,92586.0,92585.0,0.32934]
[1765326662143,0.00016199,92586.0,92585.0,0.41934]
[1765326662347,0.13013641,92610.0,92593.0,0.05834]
[1765326662348,0.010799,92594.0,92593.0,0.05834]
[1765326662545,0.0405186,92600.0,92599.0,0.0691381]
[1765326662750,0.09041994,92600.0,92599.0,0.05834]
[1765326663645,0.09241994,92600.0,92599.0,0.05834]
[1765326664935,0.09441994,92600.0,92599.0,0.05834]
[1765326665945,0.09441954,92600.0,92599.0,0.05834]
[1765326666143,0.004,92600.0,92599.0,0.53834]
[1765326666353,0.00016199,92609.0,92608.0,0.0680973]
[1765326666646,0.00107974,92615.0,92608.0,0.0680973]
[1765326666647,0.00107974,92615.0,92614.0,0.0680966]
[1765326666854,0.07274,92634.0,92633.0,0.0573]
[1765326667051,0.09551792,92634.0,92633.0,0.0573]
[1765326667450,0.10631222,92634.0,92633.0,0.0573]
[1765326669250,0.10731222,92634.0,92633.0,0.0573]
[1765326669460,0.10831222,92634.0,92633.0,0.0573]
[1765326669949,0.09119222,92634.0,92633.0,0.0573]
[1765326670156,0.09119222,92634.0,92633.0,0.0680944]
[1765326670157,0.08039792,92634.0,92633.0,0.0680944]
[1765326670347,0.02477792,92634.0,92633.0,0.4280944]
[1765326670744,0.02477792,92634.0,92624.0,0.00016199]
[1765326670745,0.0107953,92625.0,92624.0,0.02976199]
[1765326670955,0.0107953,92625.0,92624.0,0.05746199]
[1765326670956,0.0664153,92625.0,92624.0,0.05746199]
[1765326671451,0.0664153,92625.0,92624.0,0.00016199]
[1765326671854,0.0664153,92625.0,92624.0,0.00216199]
[1765326672053,0.0664153,92625.0,92624.0,0.00316199]
[1765326672751,0.0664153,92625.0,92624.0,0.00216199]
[1765326672951,0.0664153,92625.0,92624.0,0.00116199]
[1765326673255,0.0664153,92625.0,92624.0,0.03076199]
[1765326674054,0.0664153,92625.0,92624.0,0.05846199]
[1765326674460,0.0664153,92625.0,92624.0,0.42746199]
[1765326674659,0.0664153,92625.0,92624.0,0.42846199]
[1765326674962,0.0664153,92625.0,92624.0,0.16846199]
[1765326675357,0.0664153,92625.0,92624.0,0.05846199]
[1765326675564,0.0664153,92625.0,92624.0,0.03076199]
[1765326675954,0.0664153,92625.0,92624.0,0.03176199]
[1765326676354,0.0664153,92625.0,92624.0,0.06046199]
[1765326676557,0.0107952,92626.0,92625.0,0.0680953]
[1765326676748,0.0107952,92626.0,92624.0,0.00316199]
[1765326676950,0.05562,92625.0,92624.0,0.00316199]
[1765326677155,0.05562,92625.0,92624.0,0.00216199]
[1765326677557,0.05562,92625.0,92600.0,0.15990408]
[1765326677558,0.0664181,92601.0,92600.0,0.15990408]
[1765326677853,0.0664185,92598.0,92597.0,0.04054648]
[1765326678052,0.0664185,92598.0,92597.0,0.03094648]
[1765326678466,0.0664185,92598.0,92597.0,0.01094648]
[1765326678653,0.0664193,92591.0,92590.0,0.00108004]
[1765326679964,0.0684193,92591.0,92590.0,0.00108004]
[1765326680159,0.0684193,92591.0,92590.0,0.05838004]
[1765326680660,0.0704193,92591.0,92590.0,0.05838004]
[1765326681063,0.0704193,92591.0,92590.0,0.00108004]
[1765326681261,0.0694193,92591.0,92590.0,0.03068004]
[1765326681461,0.0674193,92591.0,92590.0,0.05838004]
[1765326681664,0.0684193,92591.0,92590.0,0.05838004]
[1765326681965,0.0674193,92591.0,92590.0,0.05938004]
[1765326682163,0.001,92591.0,92590.0,0.05938004]
[1765326682465,0.0664191,92593.0,92592.0,0.0573]
[1765326682763,0.0664191,92593.0,92590.0,0.00108004]
[1765326683065,0.05562,92591.0,92590.0,0.05838004]
[1765326683371,0.05562,92591.0,92590.0,0.00208004]
[1765326683965,0.02836,92591.0,92590.0,0.05943004]
[1765326684169,0.05563,92591.0,92590.0,0.05943004]
[1765326684371,0.07278,92603.0,92602.0,0.05735]
[1765326684570,0.0835779,92603.0,92602.0,0.05735]
[1765326685662,0.0835779,92603.0,92602.0,0.02855]
[1765326685663,0.0845779,92603.0,92602.0,0.02855]
[1765326686374,0.0835779,92603.0,92602.0,0.02855]
[1765326686671,0.0845779,92603.0,92602.0,0.02855]
[1765326686974,0.0107993,92591.0,92590.0,0.05843004]
[1765326687265,0.0664593,92591.0,92590.0,0.05843004]
[1765326688571,0.0664593,92591.0,92590.0,0.05943004]
[1765326688771,0.0664593,92591.0,92590.0,0.06143004]
[1765326689359,0.0664593,92591.0,92590.0,0.05943004]
[1765326689558,0.0664593,92591.0,92590.0,0.06043004]
[1765326692071,0.0664593,92591.0,92590.0,0.00308004]
[1765326692867,0.0664593,92591.0,92590.0,0.03163004]
[1765326693270,0.0664593,92591.0,92590.0,0.00308004]
[1765326693483,0.0674593,92591.0,92590.0,0.00208004]
[1765326694293,0.0684593,92591.0,92590.0,0.00108004]
[1765326696403,0.0684593,92591.0,92569.0,0.05795643]
[1765326696404,0.0721,92568.0,92567.0,0.05735]
[1765326696693,0.0721,92568.0,92567.0,0.13735]
[1765326696893,0.02839,92568.0,92567.0,0.13735]
[1765326697592,0.05566,92568.0,92567.0,0.14435]
[1765326697788,0.05566,92568.0,92567.0,0.15435]
[1765326698295,0.07337,92568.0,92567.0,0.007]
[1765326698589,0.07337,92568.0,92567.0,0.03555]
[1765326698795,0.07337,92568.0,92567.0,0.06235]
[1765326699296,0.07337,92568.0,92567.0,0.03355]
[1765326699497,0.07337,92568.0,92567.0,0.001]
[1765326699699,0.07337,92568.0,92567.0,0.003]
[1765326699897,0.07337,92568.0,92567.0,0.06035]
[1765326700595,0.05566,92568.0,92567.0,0.06035]
[1765326701891,0.07337,92568.0,92567.0,0.06035]
[1765326702892,0.07337,92568.0,92567.0,0.003]
[1765326704786,0.07337,92568.0,92567.0,0.06035]
[1765326706594,0.07337,92568.0,92567.0,0.003]
[1765326708396,0.07337,92568.0,92558.0,0.10293449]
[1765326708397,0.066463,92559.0,92558.0,0.00016199]
[1765326709691,0.066463,92559.0,92558.0,0.00616199]
[1765326711694,0.066463,92559.0,92558.0,0.06351199]
[1765326712198,0.010803,92559.0,92558.0,0.06351199]
[1765326712401,0.066463,92559.0,92558.0,0.06351199]
[1765326714006,0.010803,92559.0,92558.0,0.06351199]
[1765326715004,0.01771,92568.0,92567.0,0.05734]
[1765326715198,0.07215,92568.0,92567.0,0.05734]
[1765326716305,0.07215,92568.0,92567.0,0.05934]
[1765326721301,0.0272412,92575.0,92574.0,0.0681413]
[1765326721302,0.0379212,92575.0,92574.0,0.0681413]
[1765326721609,0.0652412,92575.0,92574.0,0.05734]
[1765326721812,0.0829612,92575.0,92574.0,0.05734]
[1765326721994,0.082962,92568.0,92567.0,0.03023]
[1765326722194,0.082962,92568.0,92567.0,0.002]
[1765326722403,0.065243,92559.0,92558.0,0.16027449]
[1765326722599,0.065243,92559.0,92558.0,0.06750199]
[1765326723004,0.065243,92559.0,92558.0,0.05750199]
[1765326723406,0.07216,92568.0,92567.0,0.05734]
[1765326723602,0.082962,92568.0,92567.0,0.05734]
[1765326723809,0.082962,92568.0,92567.0,0.02823]
[1765326724795,0.082962,92568.0,92567.0,0.02923]
[1765326725001,0.082962,92568.0,92567.0,0.03023]
[1765326725407,0.07216,92568.0,92567.0,0.05934]
[1765326725611,0.0108014,92574.0,92573.0,0.0108012]
[1765326725810,0.0108014,92574.0,92573.0,0.0668912]
[1765326726206,0.06162367,92574.0,92573.0,0.0668912]
[1765326727398,0.00016199,92577.0,92576.0,0.067531]
[1765326727598,0.00016199,92577.0,92576.0,0.157531]
[1765326727803,0.00016199,92577.0,92576.0,0.12548743]
[1765326728006,0.00016199,92577.0,92576.0,0.067531]
[1765326728211,0.00016199,92577.0,92576.0,0.12575698]
[1765326728806,0.00016199,92577.0,92576.0,0.12875698]
[1765326729210,0.00016199,92577.0,92576.0,0.070531]
[1765326729410,0.00016199,92577.0,92576.0,0.12775698]
[1765326729610,0.00016199,92577.0,92576.0,0.151531]
[1765326730010,0.00016199,92577.0,92576.0,0.20975698]
[1765326730210,0.00016199,92577.0,92576.0,0.149531]
[1765326730410,0.00016199,92577.0,92576.0,0.151531]
[1765326730805,0.00016199,92577.0,92576.0,0.149531]
[1765326731110,0.00016199,92577.0,92576.0,0.151531]
[1765326731508,0.00016199,92577.0,92576.0,0.152531]
[1765326731718,0.00016199,92577.0,92576.0,0.150531]
[1765326731912,0.00016199,92577.0,92576.0,0.152531]
[1765326732214,0.00016199,92577.0,92576.0,0.151531]
[1765326732416,0.00016199,92577.0,92576.0,0.071531]
[1765326732610,0.00016199,92577.0,92576.0,0.069531]
[1765326732815,0.00016199,92577.0,92576.0,0.072531]
[1765326733008,0.05577199,92577.0,92576.0,0.072531]
[1765326734216,0.05577199,92577.0,92576.0,0.071531]
[1765326734619,0.05577199,92577.0,92576.0,0.069531]
[1765326734807,0.05577199,92577.0,92576.0,0.001]
[1765326735008,0.05577199,92577.0,92576.0,0.03087]
[1765326735313,0.05577199,92577.0,92576.0,0.05773]
[1765326735518,0.05577199,92577.0,92576.0,0.05873]
[1765326736407,0.05577199,92577.0,92576.0,0.05773]
[1765326737012,0.05577199,92577.0,92576.0,0.05673]
[1765326737319,0.05677199,92577.0,92576.0,0.05673]
[1765326737617,0.05577199,92577.0,92576.0,0.05673]
[1765326737817,0.05577199,92577.0,92562.0,0.05822598]
[1765326737818,0.05561,92563.0,92562.0,0.05822598]
[1765326738113,0.05561,92563.0,92562.0,0.20673]
[1765326738314,0.05561,92563.0,92562.0,0.05673]
[1765326739221,0.05561,92563.0,92562.0,0.06673]
[1765326739923,0.05561,92563.0,92562.0,0.06873]
[1765326740321,0.05561,92563.0,92562.0,0.44073]
[1765326742913,0.05561,92563.0,92562.0,0.12073]
[1765326743116,0.05561,92563.0,92562.0,0.07073]
[1765326743309,0.05561,92563.0,92562.0,0.014]
[1765326743716,0.05561,92563.0,92562.0,0.04282]
[1765326745016,0.05561,92563.0,92562.0,0.07024]
[1765326745826,0.05561,92563.0,92562.0,0.0810427]
[1765326746020,0.07203,92568.0,92567.0,0.05624]
[1765326746327,0.05546,92568.0,92567.0,0.05624]
[1765326747327,0.0107997,92587.0,92567.0,0.05624]
[1765326747328,0.00108004,92590.0,92576.0,0.067041]
[1765326747519,0.0107998,92587.0,92576.0,0.61526698]
[1765326747719,0.0108,92585.0,92576.0,0.61526698]
[1765326747920,0.00108004,92590.0,92576.0,0.61526698]
[1765326747921,0.00108004,92590.0,92576.0,0.557041]
[1765326748224,0.00108004,92590.0,92576.0,0.61523332]
[1765326748527,0.0108002,92584.0,92576.0,0.557041]
[1765326748826,0.00108004,92590.0,92576.0,0.147041]
[1765326749129,0.00108004,92590.0,92576.0,0.547041]
[1765326749522,0.00116199,92577.0,92576.0,0.547041]
[1765326750519,0.01196289,92577.0,92576.0,0.547041]
[1765326750726,0.06742289,92577.0,92576.0,0.069041]
[1765326751131,0.06642289,92577.0,92576.0,0.070041]
[1765326751322,0.00016199,92577.0,92576.0,0.070041]
[1765326751523,0.02276877,92577.0,92576.0,0.070041]
[1765326751724,0.00016199,92577.0,92576.0,0.070041]
[1765326751919,0.02276877,92577.0,92576.0,0.070041]
[1765326752321,0.02276877,92577.0,92576.0,0.069041]
[1765326752630,0.05065877,92577.0,92576.0,0.068041]
[1765326752829,0.05065877,92577.0,92576.0,0.070041]
[1765326753020,0.07822877,92577.0,92576.0,0.070041]
[1765326753221,0.07822877,92577.0,92576.0,0.069041]
[1765326753629,0.07822877,92577.0,92576.0,0.068041]
[1765326753829,0.02276877,92577.0,92576.0,0.070041]
[1765326754428,0.02276877,92577.0,92576.0,0.068041]
[1765326754631,0.02276877,92577.0,92576.0,0.069041]
[1765326755228,0.07822877,92577.0,92576.0,0.05724]
[1765326755435,0.07822877,92577.0,92576.0,0.05824]
[1765326755933,0.05065877,92577.0,92576.0,0.05724]
[1765326756134,0.05065877,92577.0,92576.0,0.05824]
[1765326756535,0.05065877,92577.0,92576.0,0.47724]
[1765326756933,0.02276877,92577.0,92576.0,0.47824]
[1765326757141,0.02276877,92577.0,92576.0,0.56824]
[1765326757354,0.00016199,92577.0,92576.0,0.56924]
[1765326757556,0.00016199,92577.0,92576.0,0.56724]
[1765326757756,0.00016199,92577.0,92576.0,0.56924]
[1765326757947,0.05562199,92577.0,92576.0,0.05924]
[1765326758258,0.07825242,92577.0,92576.0,0.05924]
[1765326758644,0.07825242,92577.0,92576.0,0.05824]
[1765326758849,0.07825242,92577.0,92576.0,0.05924]
[1765326759249,0.07825242,92577.0,92576.0,0.05824]
[1765326759550,0.07825242,92577.0,92576.0,0.002]
[1765326759758,0.07825242,92577.0,92576.0,0.05824]
[1765326759950,0.07825242,92577.0,92576.0,0.05724]
[1765326760650,0.07825242,92577.0,92576.0,0.05624]
[1765326761250,0.07825452,92577.0,92576.0,0.05624]
[1765326761562,0.05562199,92577.0,92576.0,0.05624]
[1765326761750,0.05662199,92577.0,92576.0,0.05624]
[1765326762150,0.05562199,92577.0,92576.0,0.05624]
[1765326762354,0.0386921,92567.0,92566.0,0.05819364]
[1765326762555,0.0386921,92567.0,92566.0,0.07624]
[1765326762556,0.0662621,92567.0,92566.0,0.07624]
[1765326763461,0.0662621,92567.0,92566.0,0.07824]
[1765326763853,0.0662621,92567.0,92566.0,0.08024]
[1765326764549,0.0662621,92567.0,92566.0,0.024]
[1765326764749,0.0662621,92567.0,92566.0,0.004]
[1765326765461,0.0662621,92567.0,92566.0,0.06024]
[1765326765958,0.0662621,92567.0,92566.0,0.05824]
[1765326769661,0.0662621,92567.0,92566.0,0.002]
[1765326770059,0.08889713,92567.0,92566.0,0.002]
[1765326771263,0.066263,92559.0,92558.0,0.02898199]
[1765326771566,0.066263,92559.0,92558.0,0.08640199]
[1765326772567,0.066263,92559.0,92558.0,0.08840199]
[1765326772756,0.066263,92559.0,92558.0,0.09140199]
[1765326773358,0.066263,92559.0,92558.0,0.06398199]
[1765326773568,0.027463,92559.0,92558.0,0.06398199]
[1765326773763,0.065686,92559.0,92558.0,0.09154199]
[1765326774270,0.0680625,92564.0,92563.0,0.05654]
[1765326774563,0.0680625,92564.0,92563.0,0.0673425]
[1765326774766,0.0382225,92564.0,92563.0,0.0673425]
[1765326774958,0.02742,92564.0,92563.0,0.0673425]
[1765326775475,0.02742,92564.0,92563.0,0.0683425]
[1765326775767,0.0108022,92566.0,92565.0,0.05654]
[1765326776161,0.0108022,92566.0,92565.0,0.44654]
[1765326776356,0.0382219,92569.0,92568.0,0.01677]
[1765326776563,0.0108019,92569.0,92568.0,0.44331]
[1765326777358,0.0680619,92569.0,92568.0,0.44331]
[1765326778360,0.0108019,92569.0,92568.0,0.44431]
[1765326778563,0.03838289,92577.0,92576.0,0.05654]
[1765326778859,0.01096289,92577.0,92576.0,0.40654]
[1765326779064,0.01096289,92577.0,92576.0,0.11654]
[1765326779573,0.03938289,92577.0,92576.0,0.11654]
[1765326779965,0.03938289,92577.0,92576.0,0.38654]
[1765326780368,0.01396289,92577.0,92576.0,0.38654]
[1765326780874,0.01296289,92577.0,92576.0,0.38654]
[1765326781371,0.01096289,92577.0,92576.0,0.38654]
[1765326782156,0.01096289,92577.0,92576.0,0.38754]
[1765326784360,0.01096289,92577.0,92576.0,0.398341]
[1765326785459,0.0107998,92587.0,92586.0,0.02898]
[1765326785660,0.0107998,92587.0,92586.0,0.05654]
[1765326785973,0.0664798,92587.0,92586.0,0.05654]
[1765326786173,0.08918269,92587.0,92586.0,0.05654]
[1765326786670,0.09218269,92587.0,92586.0,0.05654]
[1765326787369,0.09196594,92587.0,92586.0,0.02898]
[1765326787672,0.0663708,92578.0,92577.0,0.05583199]
[1765326787970,0.0663708,92578.0,92577.0,0.11583199]
[1765326788560,0.0663708,92578.0,92577.0,0.00016199]
[1765326788762,0.0663708,92578.0,92577.0,0.05583199]
[1765326789079,0.0663708,92578.0,92577.0,0.05683199]
[1765326789462,0.0108008,92578.0,92577.0,0.31763289]
[1765326789658,0.0108005,92581.0,92580.0,0.0108002]
[1765326789874,0.0108005,92581.0,92580.0,0.4664702]
[1765326790272,0.0108002,92584.0,92583.0,0.0107998]
[1765326790466,0.0108002,92584.0,92583.0,0.0664698]
[1765326791664,0.0381097,92588.0,92587.0,0.0107995]
[1765326791864,0.0381097,92588.0,92587.0,0.4764695]
[1765326793173,0.0391097,92588.0,92587.0,0.4764695]
[1765326793676,0.0663697,92588.0,92587.0,0.46567]
[1765326793878,0.0663697,92588.0,92587.0,0.05567]
[1765326794476,0.0663701,92584.0,92583.0,0.02837]
[1765326794665,0.0663707,92579.0,92578.0,0.05567]
[1765326795276,0.0663707,92579.0,92578.0,0.02837]
[1765326795979,0.0663707,92579.0,92578.0,0.05567]
[1765326796177,0.0673707,92579.0,92578.0,0.05567]
[1765326797069,0.0673707,92579.0,92578.0,0.29567]
[1765326797269,0.0673707,92579.0,92578.0,0.05567]
[1765326799179,0.0663707,92579.0,92578.0,0.05567]
[1765326799380,0.0673707,92579.0,92578.0,0.05567]
[1765326801379,0.0663707,92579.0,92578.0,0.05567]
[1765326801581,0.09007186,92579.0,92578.0,0.05567]
[1765326803982,0.09007186,92579.0,92578.0,0.43567]
[1765326805084,0.08907186,92579.0,92578.0,0.05667]
[1765326806484,0.09007186,92579.0,92578.0,0.05667]
[1765326806982,0.09007186,92579.0,92578.0,0.4274708]
[1765326807282,0.03450186,92579.0,92578.0,0.4274708]
[1765326807478,0.02370116,92579.0,92578.0,0.5064708]
[1765326807684,0.001,92579.0,92578.0,0.5064708]
[1765326807877,0.0108001,92587.0,92586.0,0.0808895]
[1765326808070,0.03352976,92587.0,92586.0,0.0808895]
[1765326809882,0.03352976,92587.0,92586.0,0.5018895]
[1765326810976,0.03352976,92587.0,92586.0,0.5008895]
[1765326811177,0.03352976,92587.0,92586.0,0.5018895]
[1765326811683,0.0108001,92587.0,92586.0,0.5018895]
[1765326812181,0.0108001,92587.0,92586.0,0.5028895]
[1765326812379,0.0405301,92587.0,92586.0,0.5028895]
[1765326812584,0.0700601,92587.0,92586.0,0.5028895]
[1765326812775,0.0700601,92587.0,92586.0,0.07109]
[1765326812977,0.0700601,92587.0,92586.0,0.0296]
[1765326813177,0.0700601,92587.0,92586.0,0.05817]